Workbook

Sheet plot
B6: xy: | C6: 0 | D6: 0 | E6: 0 | S6: tick mark | T6: _tmx_y | U6: _tmx_z
B7: zy: | C7: 0 | D7: 90 | E7: 0 | T7: _tmy_x | U7: _tmy_z
B8: xz: | C8: 90 | D8: 90 | E8: 0 | G8: data points | H8: =1+MAX(IF(H33:H65597<>0,ROW(H33:H65597),0))-ROW(H33) -> 59 | I8: <- array formula! | K8: cage | N8: screen | S8: vect | T8: _tmz_y | U8: _tmz_x | V8: vectxc | W8: tmx x | X8: tick label x | Y8: xsx | Z8: ysx | AA8: vectyc | AB8: tmy y | AC8: tick label y | AD8: xsy | AE8: ysy | AF8: vectzc | AG8: tmz z | AH8: tick label z | AI8: xsz | AJ8: ysz
B9: 3d | C9: 165 | D9: 200 | K9: x | L9: y | M9: z | N9: xs_cage | O9: ys_cage | S9: 0 | T9: 0.5 | U9: -0.5 | V9: =IF($S9>H$23,H$23,$S9) -> 0 | W9: =H$24+V9*H$25 -> -0.298891129 | Y9: =(W9*$H$13+T9*$I$13+U9*$J$13+$D$27)*$C$27 -> -0.4156439032 | Z9: =(W9*$H$14+T9*$I$14+U9*$J$14+$E$27)*$C$27 -> 0.726624 | AA9: =IF($S9>I$23,I$23,$S9) -> 0 | AB9: =I$24+AA9*I$25 -> -0.3614976806 | AD9: =(T9*$H$13+AB9*$I$13+U9*$J$13+$D$27)*$C$27 -> 0.659344 | AE9: =(T9*$H$14+AB9*$I$14+U9*$J$14+$E$27)*$C$27 -> -0.432607279 | AF9: =IF($S9>J$23,J$23,$S9) -> 0 | AG9: =J$24+AF9*J$25 -> -0.3586239397 | AI9: =(U9*$H$13+T9*$I$13+AG9*$J$13+$D$27)*$C$27 -> -0.686256 | AJ9: =(U9*$H$14+T9*$I$14+AG9*$J$14+$E$27)*$C$27 -> 0.726624
B10: rotate x | G10: rotation matrix | K10: 0.5 | L10: -0.5 | M10: -0.5 | N10: =(K10*$H$13+L10*$I$13+M10*$J$13+$D$27)*$C$27 -> 0.659344 | O10: =(K10*$H$14+L10*$I$14+M10*$J$14+$E$27)*$C$27 -> -0.618976 | S10: 0 | T10: 0.6 | U10: -0.5 | V10: 0 | W10: -0.298891129 | X10: =H$22+V10*H$21 -> 4 | Y10: -0.4156439032 | Z10: 0.861184 | AA10: 0 | AB10: -0.3614976806 | AC10: =I$22+AA10*I$21 -> 6 | AD10: 0.793904 | AE10: -0.432607279 | AF10: 0 | AG10: -0.3586239397 | AH10: =J$22+AF10*J$21 -> 400 | AI10: -0.686256 | AJ10: 0.861184
B11: rotate y | G11: sin a | H11: =SIN(RADIANS(C13)) -> 1.225148455e-16 | I11: =SIN(RADIANS(D13)) -> 1.225148455e-16 | J11: =SIN(RADIANS(E13)) -> 1.225148455e-16 | K11: -0.5 | L11: -0.5 | M11: -0.5 | N11: -0.686256 | O11: -0.618976 | S11: 0 | T11: 0.5 | U11: -0.5 | V11: 0 | W11: -0.298891129 | Y11: -0.4156439032 | Z11: 0.726624 | AA11: 0 | AB11: -0.3614976806 | AD11: 0.659344 | AE11: -0.432607279 | AF11: 0 | AG11: -0.3586239397 | AI11: -0.686256 | AJ11: 0.726624
B12: rotate z | G12: cos a | H12: =COS(RADIANS(C13)) -> -1 | I12: =COS(RADIANS(D13)) -> -1 | J12: =COS(RADIANS(E13)) -> -1 | K12: -0.5 | L12: -0.5 | M12: 0.5 | N12: -0.686256 | O12: -0.618976 | S12: 1 | T12: 0.5 | U12: -0.5 | V12: 1 | W12: -0.09727822581 | Y12: -0.1443535806 | Z12: 0.726624 | AA12: 1 | AB12: -0.1626905235 | AD12: 0.659344 | AE12: -0.1650923685 | AF12: 1 | AG12: -0.1701225259 | AI12: -0.686256 | AJ12: 0.726624
B13: angles | C13: 180 | D13: 180 | E13: 180 | G13: rot 1 | H13: =I12*J12*H18 -> 1 | I13: =-J11*I12*I18 -> 1.225148455e-16 | J13: =I11*J18 -> 1.225148455e-16 | K13: 0.5 | L13: -0.5 | M13: 0.5 | N13: 0.659344 | O13: -0.618976 | S13: 1 | T13: 0.6 | U13: -0.5 | V13: 1 | W13: -0.09727822581 | X13: =H$22+V13*H$21 -> 8 | Y13: -0.1443535806 | Z13: 0.861184 | AA13: 1 | AB13: -0.1626905235 | AC13: =I$22+AA13*I$21 -> 9 | AD13: 0.793904 | AE13: -0.1650923685 | AF13: 1 | AG13: -0.1701225259 | AH13: =J$22+AF13*J$21 -> 800 | AI13: -0.686256 | AJ13: 0.861184
B14: planes | C14: 0 | D14: 0 | E14: 0 | G14: rot 2 | H14: =(J12*I11*H11+J11*H12)*H18 -> -1.225148455e-16 | I14: =(-J11*I11*H11+J12*H12)*I18 -> 1 | J14: =-I12*H11*J18 -> 1.225148455e-16 | K14: 0.5 | L14: -0.5 | M14: -0.5 | N14: 0.659344 | O14: -0.618976 | S14: 1 | T14: 0.5 | U14: -0.5 | V14: 1 | W14: -0.09727822581 | Y14: -0.1443535806 | Z14: 0.726624 | AA14: 1 | AB14: -0.1626905235 | AD14: 0.659344 | AE14: -0.1650923685 | AF14: 1 | AG14: -0.1701225259 | AI14: -0.686256 | AJ14: 0.726624
G15: data normalisation | K15: 0.5 | L15: 0.5 | M15: -0.5 | N15: 0.659344 | O15: 0.726624 | S15: 2 | T15: 0.5 | U15: -0.5 | V15: 2 | W15: 0.1043346774 | Y15: 0.1269367419 | Z15: 0.726624 | AA15: 2 | AB15: 0.03611663353 | AD15: 0.659344 | AE15: 0.1024225421 | AF15: 2 | AG15: 0.01837888784 | AI15: -0.686256 | AJ15: 0.726624
B16: cut plane YZ | G16: min | H16: =MIN(C33:C101) -> 0.01 | I16: =MIN(D33:D101) -> 3.91 | J16: =MIN(E33:E101) -> 100 | K16: -0.5 | L16: 0.5 | M16: -0.5 | N16: -0.686256 | O16: 0.726624 | S16: 2 | T16: 0.6 | U16: -0.5 | V16: 2 | W16: 0.1043346774 | X16: =H$22+V16*H$21 -> 12 | Y16: 0.1269367419 | Z16: 0.861184 | AA16: 2 | AB16: 0.03611663353 | AC16: =I$22+AA16*I$21 -> 12 | AD16: 0.793904 | AE16: 0.1024225421 | AF16: 2 | AG16: 0.01837888784 | AH16: =J$22+AF16*J$21 -> 1200 | AI16: -0.686256 | AJ16: 0.861184
B17: cut plane XZ | G17: range | H17: =MAX(C33:C101)-H16 -> 19.84 | I17: =MAX(D33:D101)-I16 -> 15.09 | J17: =MAX(E33:E101)-J16 -> 2122 | K17: -0.5 | L17: 0.5 | M17: 0.5 | N17: -0.686256 | O17: 0.726624 | S17: 2 | T17: 0.5 | U17: -0.5 | V17: 2 | W17: 0.1043346774 | Y17: 0.1269367419 | Z17: 0.726624 | AA17: 2 | AB17: 0.03611663353 | AD17: 0.659344 | AE17: 0.1024225421 | AF17: 2 | AG17: 0.01837888784 | AI17: -0.686256 | AJ17: 0.726624
B18: cut plane XY | G18: to-scale-ratios | H18: =IF(D23,H17/MAX($H17:$J17),1) -> 1 | I18: =IF(D23,I17/MAX($H17:$J17),1) -> 1 | J18: =IF(D23,J17/MAX($H17:$J17),1) -> 1 | K18: -0.5 | L18: -0.5 | M18: 0.5 | N18: -0.686256 | O18: -0.618976 | S18: 3 | T18: 0.5 | U18: -0.5 | V18: 3 | W18: 0.3059475806 | Y18: 0.3982270645 | Z18: 0.726624 | AA18: 3 | AB18: 0.2349237906 | AD18: 0.659344 | AE18: 0.3699374526 | AF18: 3 | AG18: 0.2068803016 | AI18: -0.686256 | AJ18: 0.726624
D19: FALSE | G19: tick marks | K19: -0.5 | L19: -0.5 | M19: -0.5 | N19: -0.686256 | O19: -0.618976 | S19: 3 | T19: 0.6 | U19: -0.5 | V19: 3 | W19: 0.3059475806 | X19: =H$22+V19*H$21 -> 16 | Y19: 0.3982270645 | Z19: 0.861184 | AA19: 3 | AB19: 0.2349237906 | AC19: =I$22+AA19*I$21 -> 15 | AD19: 0.793904 | AE19: 0.3699374526 | AF19: 3 | AG19: 0.2068803016 | AH19: =J$22+AF19*J$21 -> 1600 | AI19: -0.686256 | AJ19: 0.861184
B20: zoom | G20: fract | H20: =H17/5 -> 3.968 | I20: =I17/5 -> 3.018 | J20: =J17/5 -> 424.4 | K20: -0.5 | L20: 0.5 | M20: -0.5 | N20: -0.686256 | O20: 0.726624 | S20: 3 | T20: 0.5 | U20: -0.5 | V20: 3 | W20: 0.3059475806 | Y20: 0.3982270645 | Z20: 0.726624 | AA20: 3 | AB20: 0.2349237906 | AD20: 0.659344 | AE20: 0.3699374526 | AF20: 3 | AG20: 0.2068803016 | AI20: -0.686256 | AJ20: 0.726624
B21: shift x | G21: ts tick mark step width | H21: =ROUND(H20,1-INT(LOG(ABS(H20))+1)) -> 4 | I21: =ROUND(I20,1-INT(LOG(ABS(I20))+1)) -> 3 | J21: =ROUND(J20,1-INT(LOG(ABS(J20))+1)) -> 400 | S21: 4 | T21: 0.5 | U21: -0.5 | V21: 3 | W21: 0.3059475806 | Y21: 0.3982270645 | Z21: 0.726624 | AA21: 4 | AB21: 0.4337309476 | AD21: 0.659344 | AE21: 0.6374523632 | AF21: 4 | AG21: 0.3953817154 | AI21: -0.686256 | AJ21: 0.726624
B22: shift y | G22: ft location first tick mark | H22: =H21*(INT(H16/H21)+1) -> 4 | I22: =I21*(INT(I16/I21)+1) -> 6 | J22: =J21*(INT(J16/J21)+1) -> 400 | K22: cut plane frame | M22: cut plane x frame | O22: cut plane y frame | Q22: cut plane z frame | S22: 4 | T22: 0.6 | U22: -0.5 | V22: 3 | W22: 0.3059475806 | X22: =H$22+V22*H$21 -> 16 | Y22: 0.3982270645 | Z22: 0.861184 | AA22: 4 | AB22: 0.4337309476 | AC22: =I$22+AA22*I$21 -> 18 | AD22: 0.793904 | AE22: 0.6374523632 | AF22: 4 | AG22: 0.3953817154 | AH22: =J$22+AF22*J$21 -> 2000 | AI22: -0.686256 | AJ22: 0.861184
D23: FALSE | G23: tx number of tick marks | H23: =INT((H17+H16-H22)/H21) -> 3 | I23: =INT((I17+I16-I22)/I21) -> 4 | J23: =INT((J17+J16-J22)/J21) -> 4 | K23: plane 1 | L23: plane 2 | S23: 4 | T23: 0.5 | U23: -0.5 | V23: 3 | W23: 0.3059475806 | Y23: 0.3982270645 | Z23: 0.726624 | AA23: 4 | AB23: 0.4337309476 | AD23: 0.659344 | AE23: 0.6374523632 | AF23: 4 | AG23: 0.3953817154 | AI23: -0.686256 | AJ23: 0.726624
G24: ftn normalised location first tick mark | H24: =(H22-H16)/H17-0.5 -> -0.298891129 | I24: =(I22-I16)/I17-0.5 -> -0.3614976806 | J24: =(J22-J16)/J17-0.5 -> -0.3586239397 | K24: -0.5 | L24: -0.5 | M24: =(H$27*$H$13+K24*$I$13+L24*$J$13+$D$27)*$C$27 -> -0.686256 | N24: =(H$27*$H$14+K24*$I$14+L24*$J$14+$E$27)*$C$27 -> -0.618976 | O24: =(K24*$H$13+I$27*$I$13+L24*$J$13+$D$27)*$C$27 -> -0.686256 | P24: =(K24*$H$14+I$27*$I$14+L24*$J$14+$E$27)*$C$27 -> -0.618976 | Q24: =(K24*$H$13+L24*$I$13+J$27*$J$13+$D$27)*$C$27 -> -0.686256 | R24: =(K24*$H$14+L24*$I$14+J$27*$J$14+$E$27)*$C$27 -> -0.618976 | S24: 5 | T24: 0.5 | U24: -0.5 | V24: 3 | W24: 0.3059475806 | Y24: 0.3982270645 | Z24: 0.726624 | AA24: 4 | AB24: 0.4337309476 | AD24: 0.659344 | AE24: 0.6374523632 | AF24: 4 | AG24: 0.3953817154 | AI24: -0.686256 | AJ24: 0.726624
C25: zoom | D25: shift x | E25: shift y | G25: tsn normalised tick mark step width | H25: =H21/H17 -> 0.2016129032 | I25: =I21/I17 -> 0.1988071571 | J25: =J21/J17 -> 0.1885014138 | K25: 0.5 | L25: -0.5 | M25: =(H$27*$H$13+K25*$I$13+L25*$J$13+$D$27)*$C$27 -> -0.686256 | N25: =(H$27*$H$14+K25*$I$14+L25*$J$14+$E$27)*$C$27 -> 0.726624 | O25: =(K25*$H$13+I$27*$I$13+L25*$J$13+$D$27)*$C$27 -> 0.659344 | P25: =(K25*$H$14+I$27*$I$14+L25*$J$14+$E$27)*$C$27 -> -0.618976 | Q25: =(K25*$H$13+L25*$I$13+J$27*$J$13+$D$27)*$C$27 -> 0.659344 | R25: =(K25*$H$14+L25*$I$14+J$27*$J$14+$E$27)*$C$27 -> -0.618976 | S25: 5 | T25: 0.6 | U25: -0.5 | V25: 3 | W25: 0.3059475806 | X25: =H$22+V25*H$21 -> 16 | Y25: 0.3982270645 | Z25: 0.861184 | AA25: 4 | AB25: 0.4337309476 | AC25: =I$22+AA25*I$21 -> 18 | AD25: 0.793904 | AE25: 0.6374523632 | AF25: 4 | AG25: 0.3953817154 | AH25: =J$22+AF25*J$21 -> 2000 | AI25: -0.686256 | AJ25: 0.861184
C26: 8 | D26: 49 | E26: 46 | G26: cut planes | K26: 0.5 | L26: 0.5 | M26: =(H$27*$H$13+K26*$I$13+L26*$J$13+$D$27)*$C$27 -> -0.686256 | N26: =(H$27*$H$14+K26*$I$14+L26*$J$14+$E$27)*$C$27 -> 0.726624 | O26: =(K26*$H$13+I$27*$I$13+L26*$J$13+$D$27)*$C$27 -> 0.659344 | P26: =(K26*$H$14+I$27*$I$14+L26*$J$14+$E$27)*$C$27 -> -0.618976 | Q26: =(K26*$H$13+L26*$I$13+J$27*$J$13+$D$27)*$C$27 -> 0.659344 | R26: =(K26*$H$14+L26*$I$14+J$27*$J$14+$E$27)*$C$27 -> 0.726624 | S26: 5 | T26: 0.5 | U26: -0.5 | V26: 3 | W26: 0.3059475806 | Y26: 0.3982270645 | Z26: 0.726624 | AA26: 4 | AB26: 0.4337309476 | AD26: 0.659344 | AE26: 0.6374523632 | AF26: 4 | AG26: 0.3953817154 | AI26: -0.686256 | AJ26: 0.726624
C27: =(1+C26/50)^2 -> 1.3456 | D27: =D26/100-0.5 -> -0.01 | E27: =-E26/100+0.5 -> 0.04 | G27: cp normalised position | H27: =C14/100-0.5 -> -0.5 | I27: =D14/100-0.5 -> -0.5 | J27: =E14/100-0.5 -> -0.5 | K27: -0.5 | L27: 0.5 | M27: =(H$27*$H$13+K27*$I$13+L27*$J$13+$D$27)*$C$27 -> -0.686256 | N27: =(H$27*$H$14+K27*$I$14+L27*$J$14+$E$27)*$C$27 -> -0.618976 | O27: =(K27*$H$13+I$27*$I$13+L27*$J$13+$D$27)*$C$27 -> -0.686256 | P27: =(K27*$H$14+I$27*$I$14+L27*$J$14+$E$27)*$C$27 -> -0.618976 | Q27: =(K27*$H$13+L27*$I$13+J$27*$J$13+$D$27)*$C$27 -> -0.686256 | R27: =(K27*$H$14+L27*$I$14+J$27*$J$14+$E$27)*$C$27 -> 0.726624 | S27: 6 | T27: 0.5 | U27: -0.5 | V27: 3 | W27: 0.3059475806 | Y27: 0.3982270645 | Z27: 0.726624 | AA27: 4 | AB27: 0.4337309476 | AD27: 0.659344 | AE27: 0.6374523632 | AF27: 4 | AG27: 0.3953817154 | AI27: -0.686256 | AJ27: 0.726624
K28: -0.5 | L28: -0.5 | M28: =(H$27*$H$13+K28*$I$13+L28*$J$13+$D$27)*$C$27 -> -0.686256 | N28: =(H$27*$H$14+K28*$I$14+L28*$J$14+$E$27)*$C$27 -> -0.618976 | O28: =(K28*$H$13+I$27*$I$13+L28*$J$13+$D$27)*$C$27 -> -0.686256 | P28: =(K28*$H$14+I$27*$I$14+L28*$J$14+$E$27)*$C$27 -> -0.618976 | Q28: =(K28*$H$13+L28*$I$13+J$27*$J$13+$D$27)*$C$27 -> -0.686256 | R28: =(K28*$H$14+L28*$I$14+J$27*$J$14+$E$27)*$C$27 -> -0.618976 | S28: 6 | T28: 0.6 | U28: -0.5 | V28: 3 | W28: 0.3059475806 | X28: =H$22+V28*H$21 -> 16 | Y28: 0.3982270645 | Z28: 0.861184 | AA28: 4 | AB28: 0.4337309476 | AC28: =I$22+AA28*I$21 -> 18 | AD28: 0.793904 | AE28: 0.6374523632 | AF28: 4 | AG28: 0.3953817154 | AH28: =J$22+AF28*J$21 -> 2000 | AI28: -0.686256 | AJ28: 0.861184
S29: 6 | T29: 0.5 | U29: -0.5 | V29: 3 | W29: 0.3059475806 | Y29: 0.3982270645 | Z29: 0.726624 | AA29: 4 | AB29: 0.4337309476 | AD29: 0.659344 | AE29: 0.6374523632 | AF29: 4 | AG29: 0.3953817154 | AI29: -0.686256 | AJ29: 0.726624
H31: norm | K31: screen | M31: cut plane x | O31: cut plane y | Q31: cut plane z
B32: labels | C32: x-value | D32: y-value | E32: z-value | F32: 4th dimension | G32: z drop lines | H32: x norm | I32: y norm | J32: z norm | K32: xs | L32: ys | M32: _xs_cpx | N32: _ys_cpx | O32: _xs_cpy | P32: _ys_cpy | Q32: _xs_cpz | R32: _ys_cpz
C33: 4.78 | D33: 10 | E33: 813 | G33: =D$19*(L33-R33) -> 0 | H33: =(C33-H$16)/H$17-0.5 -> -0.2595766129 | I33: -0.09642147117 | J33: -0.16399623 | K33: =(H33*$H$13+I33*$I$13+J33*$J$13+$D$27)*$C$27 -> -0.3627422903 | L33: =(H33*$H$14+I33*$I$14+J33*$J$14+$E$27)*$C$27 -> -0.07592073161
C34: 6.16 | D34: 10.09 | E34: 750 | G34: 0 | H34: -0.1900201613 | I34: -0.09045725646 | J34: -0.1936852026 | K34: -0.269147129 | L34: -0.06789528429
C35: 1.87 | D35: 9 | E35: 672 | G35: 0 | H35: -0.40625 | I35: -0.1626905235 | J35: -0.2304429783 | K35: -0.560106 | L35: -0.1650923685
C36: 15.65 | D36: 9.575 | E36: 640 | G36: 0 | H36: 0.2883064516 | I36: -0.1245858184 | J36: -0.2455230914 | K36: 0.3744891613 | L36: -0.1138186773
C37: 13.81 | D37: 9.665 | E37: 812 | G37: 0 | H37: 0.1955645161 | I37: -0.1186216037 | J37: -0.1644674835 | K37: 0.2496956129 | L37: -0.10579323
C38: 14.02 | D38: 15.22 | E38: 1021 | G38: 0 | H38: 0.2061491935 | I38: 0.2495029821 | J38: -0.06597549482 | K38: 0.2639383548 | L38: 0.3895552127
C39: 15.47 | D39: 13.465 | E39: 1532 | G39: 0 | H39: 0.279233871 | I39: 0.1332007952 | J39: 0.1748350613 | K39: 0.3622810968 | L39: 0.2330589901
C40: 12.7 | D40: 12.62 | E40: 1201 | G40: =D$19*(L40-R40) -> 0 | H40: =(C40-H$16)/H$17-0.5 -> 0.1396169355 | I40: =(D40-I$16)/I$17-0.5 -> 0.07720344599 | J40: =(E40-J$16)/J$17-0.5 -> 0.01885014138 | K40: =(H40*$H$13+I40*$I$13+J40*$J$13+$D$27)*$C$27 -> 0.1744125484 | L40: =(H40*$H$14+I40*$I$14+J40*$J$14+$E$27)*$C$27 -> 0.1577089569
C41: 3.79 | D41: 7.6 | E41: 500 | G41: 0 | H41: -0.3094758065 | I41: -0.2554671968 | J41: -0.3114985862 | K41: -0.4298866452 | L41: -0.28993266
C42: 7.61 | D42: 6.385 | E42: 423 | G42: 0 | H42: -0.1169354839 | I42: -0.3359840954 | J42: -0.3477851084 | K42: -0.1708043871 | L42: -0.3982761988
C43: 7.12 | D43: 9.53 | E43: 789 | G43: 0 | H43: -0.1416330645 | I43: -0.1275679258 | J43: -0.1753063148 | K43: -0.2040374516 | L43: -0.1178314009
C44: 0.35 | D44: 7 | E44: 788 | G44: 0 | H44: -0.4828629032 | I44: -0.2952286282 | J44: -0.1757775683 | K44: -0.6631963226 | L44: -0.3434356421
C45: 15.57 | D45: 13.315 | E45: 1001 | G45: 0 | H45: 0.2842741935 | I45: 0.1232604374 | J45: -0.0754005655 | K45: 0.3690633548 | L45: 0.2196832445
C46: 2.62 | D46: 3.91 | E46: 251 | G46: 0 | H46: -0.3684475806 | I46: -0.5 | J46: -0.4288407163 | K46: -0.5092390645 | L46: -0.618976
C47: 2.15 | D47: 4.515 | E47: 342 | G47: 0 | H47: -0.3921370968 | I47: -0.4599072233 | J47: -0.3859566447 | K47: -0.5411156774 | L47: -0.5650271597
C48: 0.61 | D48: 6.905 | E48: 652 | G48: 0 | H48: -0.4697580645 | I48: -0.3015241882 | J48: -0.239868049 | K48: -0.6455624516 | L48: -0.3519069476
C49: 13.64 | D49: 9.69 | E49: 782 | G49: 0 | H49: 0.1869959677 | I49: -0.1169648774 | J49: -0.1786050895 | K49: 0.2381657742 | L49: -0.103563939
C50: 0.01 | D50: 6.145 | E50: 908 | G50: 0 | H50: -0.5 | I50: -0.351888668 | J50: -0.1192271442 | K50: -0.686256 | L50: -0.4196773917
C51: 2.2 | D51: 4.44 | E51: 524 | G51: 0 | H51: -0.3896169355 | I51: -0.4648774023 | J51: -0.3001885014 | K51: -0.5377245484 | L51: -0.5717150325
C52: 3.18 | D52: 5.18 | E52: 608 | G52: 0 | H52: -0.3402217742 | I52: -0.4158383035 | J52: -0.2606032045 | K52: -0.4712584194 | L52: -0.5057280212
C53: 18.38 | D53: 11.5 | E53: 951 | G53: 0 | H53: 0.4259072581 | I53: 0.002982107356 | J53: -0.09896324222 | K53: 0.5596448065 | L53: 0.05783672366
C54: 6.2 | D54: 8.07 | E54: 988 | G54: 0 | H54: -0.1880040323 | I54: -0.2243207422 | J54: -0.08152686145 | K54: -0.2664342258 | L54: -0.2480219907
C55: 10.49 | D55: 8.195 | E55: 1002 | G55: 0 | H55: 0.02822580645 | I55: -0.2160371107 | J55: -0.07492931197 | K55: 0.02452464516 | L55: -0.2368755361
C56: 7.02 | D56: 6.08 | E56: 999 | G56: 0 | H56: -0.1466733871 | I56: -0.3561961564 | J56: -0.07634307257 | K56: -0.2108197097 | L56: -0.425473548
C57: 12.18 | D57: 8.78 | E57: 302 | G57: 0 | H57: 0.1134072581 | I57: -0.177269715 | J57: -0.4048067861 | K57: 0.1391448065 | L57: -0.1847101286
C58: 11 | D58: 11.195 | E58: 543 | G58: 0 | H58: 0.05393145161 | I58: -0.01722995361 | J58: -0.2912346843 | K58: 0.05911416129 | L58: 0.03063937442
C59: 13.83 | D59: 10.255 | E59: 1543 | G59: 0 | H59: 0.1965725806 | I59: -0.07952286282 | J59: 0.1800188501 | K59: 0.2510520645 | L59: -0.05318196421
C60: 11.49 | D60: 10.375 | E60: 1431 | G60: 0 | H60: 0.07862903226 | I60: -0.07157057654 | J60: 0.1272384543 | K60: 0.09234722581 | L60: -0.04248136779
C61: 4.98 | D61: 4.02 | E61: 100 | G61: 0 | H61: -0.2494959677 | I61: -0.4927104042 | J61: -0.5 | K61: -0.3491777742 | L61: -0.6091671199
C62: 18 | D62: 19 | E62: 2034 | G62: 0 | H62: 0.4067540323 | I62: 0.5 | J62: 0.4114043355 | K62: 0.5338722258 | L62: 0.726624
C63: 9.94 | D63: 13.47 | E63: 1751 | G63: 0 | H63: 0.0005040322581 | I63: 0.1335321405 | J63: 0.2780395853 | K63: -0.01277777419 | L63: 0.2335048482
C64: 19.85 | D64: 15.865 | E64: 1871 | G64: 0 | H64: 0.5 | I64: 0.2922465209 | J64: 0.3345900094 | K64: 0.659344 | L64: 0.4470709185
C65: 19.07 | D65: 16 | E65: 2007 | G65: 0 | H65: 0.4606854839 | I65: 0.3011928429 | J65: 0.3986804901 | K65: 0.6064423871 | L65: 0.4591090895
C66: 4.7 | D66: 10.24 | E66: 1653 | G66: 0 | H66: -0.263608871 | I66: -0.08051689861 | J66: 0.2318567389 | K66: -0.3681680968 | L66: -0.05451953877
C67: 15.23 | D67: 14.465 | E67: 1238 | G67: 0 | H67: 0.2671370968 | I67: 0.1994698476 | J67: 0.03628652215 | K67: 0.3460036774 | L67: 0.3222306269
C68: 11 | D68: 7.56 | E68: 1602 | G68: 0 | H68: 0.05393145161 | I68: -0.2581179589 | J68: 0.2078228087 | K68: 0.05911416129 | L68: -0.2934995255
C69: 11.47 | D69: 8.935 | E69: 999 | G69: 0 | H69: 0.07762096774 | I69: -0.1669980119 | J69: -0.07634307257 | K69: 0.09099077419 | L69: -0.1708885249
C70: 19.29 | D70: 15.925 | E70: 2022 | G70: 0 | H70: 0.4717741935 | I70: 0.296222664 | J70: 0.4057492931 | K70: 0.6213633548 | L70: 0.4524212167
C71: 17.92 | D71: 15.84 | E71: 2222 | G71: 0 | H71: 0.4027217742 | I71: 0.2905897946 | J71: 0.5 | K71: 0.5284464194 | L71: 0.4448416276
C72: 2.22 | D72: 8 | E72: 1874 | G72: =D$19*(L72-R72) -> 0 | H72: =(C72-H$16)/H$17-0.5 -> -0.388608871 | I72: =(D72-I$16)/I$17-0.5 -> -0.2289595759 | J72: =(E72-J$16)/J$17-0.5 -> 0.33600377 | K72: =(H72*$H$13+I72*$I$13+J72*$J$13+$D$27)*$C$27 -> -0.5363680968 | L72: =(H72*$H$14+I72*$I$14+J72*$J$14+$E$27)*$C$27 -> -0.2542640053
C73: 8.1 | D73: 8.93 | E73: 1502 | G73: 0 | H73: -0.09223790323 | I73: -0.1673293572 | J73: 0.1606974552 | K73: -0.1375713226 | L73: -0.171334383
C74: 7.57 | D74: 5.815 | E74: 765 | G74: 0 | H74: -0.1189516129 | I74: -0.3737574553 | J74: -0.1866163996 | K74: -0.1735172903 | L74: -0.4491040318
C75: 7.57 | D75: 6.975 | E75: 568 | G75: 0 | H75: -0.1189516129 | I75: -0.2968853545 | J75: -0.2794533459 | K75: -0.1735172903 | L75: -0.3456649331
C76: 5.78 | D76: 9.99 | E76: 980 | G76: 0 | H76: -0.2091733871 | I76: -0.0970841617 | J76: -0.08529688973 | K76: -0.2949197097 | L76: -0.07681244798
C77: 1.81 | D77: 7.085 | E77: 1030 | G77: 0 | H77: -0.4092741935 | I77: -0.2895957588 | J77: -0.06173421301 | K77: -0.5641753548 | L77: -0.335856053
C78: 9.29 | D78: 9.005 | E78: 1111 | G78: 0 | H78: -0.03225806452 | I78: -0.1623591783 | J78: -0.02356267672 | K78: -0.05686245161 | L78: -0.1646465103
C79: 2.43 | D79: 8.575 | E79: 1222 | G79: 0 | H79: -0.3780241935 | I79: -0.1908548708 | J79: 0.0287464656 | K79: -0.5221253548 | L79: -0.2029903141
C80: 2.32 | D80: 4.18 | E80: 627 | G80: 0 | H80: -0.3835685484 | I80: -0.4821073559 | J80: -0.2516493874 | K80: -0.5295858387 | L80: -0.5948996581
C81: 12.3 | D81: 9.38 | E81: 1435 | G81: 0 | H81: 0.1194556452 | I81: -0.1375082836 | J81: 0.1291234684 | K81: 0.1472835161 | L81: -0.1312071465
C82: 14.71 | D82: 15.435 | E82: 1876 | G82: 0 | H82: 0.2409274194 | I82: 0.2637508284 | J82: 0.3369462771 | K82: 0.3107359355 | L82: 0.4087271146
C83: 5.18 | D83: 4.75 | E83: 134 | G83: 0 | H83: -0.2394153226 | I83: -0.444333996 | J83: -0.4839773798 | K83: -0.3356132581 | L83: -0.544071825
C84: 8.87 | D84: 6.255 | E84: 164 | G84: 0 | H84: -0.05342741935 | I84: -0.3445990722 | J84: -0.4698397738 | K84: -0.08534793548 | L84: -0.4098685116
C85: 9.01 | D85: 12.895 | E85: 763 | G85: 0 | H85: -0.04637096774 | I85: 0.09542743539 | J85: -0.1875589067 | K85: -0.07585277419 | L85: 0.1822311571
C86: 4.58 | D86: 4.87 | E86: 608 | G86: 0 | H86: -0.2696572581 | I86: -0.4363817097 | J86: -0.2606032045 | K86: -0.3763068065 | L86: -0.5333712286
C87: 10.72 | D87: 13.68 | E87: 700 | G87: 0 | H87: 0.03981854839 | I87: 0.1474486415 | J87: -0.2172478794 | K87: 0.04012383871 | L87: 0.252230892
C88: 17.49 | D88: 11.735 | E88: 167 | G88: 0 | H88: 0.3810483871 | I88: 0.01855533466 | J88: -0.4684260132 | K88: 0.4992827097 | L88: 0.07879205832
C89: 4.32 | D89: 10.36 | E89: 1877 | G89: 0 | H89: -0.2827620968 | I89: -0.07256461233 | J89: 0.3374175306 | K89: -0.3939406774 | L89: -0.04381894235
C90: 7.66 | D90: 5.49 | E90: 184 | G90: 0 | H90: -0.1144153226 | I90: -0.3952948973 | J90: -0.4604147031 | K90: -0.1674132581 | L90: -0.4780848138
C91: 1.26 | D91: 6.09 | E91: 1763 | G91: 0 | H91: -0.4369959677 | I91: -0.3555334659 | J91: 0.2836946277 | K91: -0.6014777742 | L91: -0.4245818317
